[Event "Panchenko Memorial 2019"]
[Site "Chelyabinsk"]
[Date "2019.09.15"]
[Round "7.3"]
[White "Tologontegin, Semetey"]
[Black "Nesterov, Arseniy"]
[Result "1/2-1/2"]
[ECO "D00"]
[WhiteElo "2369"]
[BlackElo "2473"]
[Annotator "ChessBase"]
[PlyCount "100"]
[EventDate "2019.09.09"]
[EventType "swiss"]
[EventCountry "RUS"]
[SourceTitle "playchess.com"]
[Source "ChessBase"]
[SourceQuality "1"]
[TimeControl "5400+30"]

1. d4 {[%emt 0:01:11]} d5 {[%emt 0:00:00]} 2. Nc3 {[%emt 0:00:07]} Bf5 {[%emt 0:00:00]} 3. Bf4 {[%emt 0:00:29]} e6 {[%emt 0:00:06]} 4. e3 {[%emt 0:06:09]} Bd6 {[%emt 0:00:20]} 5. Nf3 {[%emt 0:12:32]} Ne7 {[%emt 0:07:31]} 6. h3 {[%emt 0:03:19]} Bxf4 {[%emt 0:04:21]} 7. exf4 {[%emt 0:02:24]} O-O {[%emt 0:03:48]} 8. Qd2 {[%emt 0:20:56]} c5 {[%emt 0:02:14]} 9. dxc5 {[%emt 0:09:26]} Nd7 {[%emt 0:01:59]} 10. Nd4 {[%emt 0:03:22]} Nxc5 {[%emt 0:00:51]} 11. g4 {[%emt 0:01:36]} Bg6 {[%emt 0:05:35]} 12. Be2 {[%emt 0:12:07]} f6 {[%emt 0:07:38]} 13. b4 {[%emt 0:01:05]} e5 {[%emt 0:00:43]} 14. bxc5 {[%emt 0:02:59]} exd4 {[%emt 0:00:10]} 15. Nb5 {[%emt 0:08:54]} Nc6 {[%emt 0:00:40]} 16. O-O {[%emt 0:00:06]} Qe7 {[%emt 0:06:26]} 17. Nd6 {[%emt 0:01:52]} b6 {[%emt 0:01:35]} 18. Bf3 {[%emt 0:00:05]} Qd7 {[%emt 0:00:28]} 19. Bxd5+ {[%emt 0:02:06]} Kh8 {[%emt 0:00:01]} 20. f5 {[%emt 0:04:33]} bxc5 {[%emt 0:00:28]} 21. Bxc6 {[%emt 0:01:23]} Qxc6 {[%emt 0:00:12]} 22. fxg6 {[%emt 0:00:08]} Qxd6 {[%emt 0:00:05]} 23. gxh7 {[%emt 0:00:01]} Kxh7 {[%emt 0:02:12]} 24. Rfe1 {[%emt 0:01:29]} f5 {[%emt 0:02:53]} 25. Qd3 {[%emt 0:00:21]} Kh8 {[%emt 0:01:01]} 26. gxf5 {[%emt 0:01:55]} Qd5 {[%emt 0:00:20]} 27. Re4 {[%emt 0:01:27]} Rxf5 {[%emt 0:00:50]} 28. c3 {[%emt 0:00:41]} Raf8 {[%emt 0:04:54]} 29. cxd4 {[%emt 0:00:06]} c4 {[%emt 0:00:51]} 30. Rh4+ {[%emt 0:00:52]} Kg8 {[%emt 0:00:33]} 31. Qe4 {[%emt 0:00:14]} Qxe4 {[%emt 0:02:49]} 32. Rxe4 {[%emt 0:00:03]} Rxf2 {[%emt 0:00:09]} 33. Rc1 {[%emt 0:00:08]} Rxa2 {[%emt 0:01:00]} 34. Rxc4 {[%emt 0:00:06]} Rb8 {[%emt 0:05:47]} 35. Rc1 {[%emt 0:00:52]} Rd2 {[%emt 0:01:56]} 36. Ra1 {[%emt 0:00:47]} Rb3 {[%emt 0:00:55]} 37. Rg4 {[%emt 0:00:52]} a5 {[%emt 0:00:26]} 38. Rg2 {[%emt 0:00:47]} Rxd4 {[%emt 0:00:59]} 39. Rxa5 {[%emt 0:00:23]} Rxh3 {[%emt 0:00:18]} 40. Ra8+ {[%emt 0:00:24]} Kh7 {[%emt 0:00:05]} 41. Ra7 {[%emt 0:00:04]} Rd1+ {[%emt 0:00:13]} 42. Kf2 {[%emt 0:00:04]} Rd2+ {[%emt 0:00:03]} 43. Kg1 {[%emt 0:00:06]} Rxg2+ {[%emt 0:00:07]} 44. Kxg2 {[%emt 0:00:03]} Rb3 {[%emt 0:00:07]} 45. Ra6 {[%emt 0:00:14]} g6 {[%emt 0:00:06]} 46. Ra7+ {[%emt 0:00:05]} Kh6 {[%emt 0:00:04]} 47. Ra5 {[%emt 0:00:02]} g5 {[%emt 0:00:05]} 48. Ra6+ {[%emt 0:00:14]} Kh5 {[%emt 0:00:04]} 49. Ra4 {[%emt 0:00:02]} g4 {[%emt 0:00:05]} 50. Ra8 {[%emt 0:00:07]} Rb2+ {[%emt 0:00:11]} 1/2-1/2

[Event "Panchenko Memorial 2019"]
[Site "Chelyabinsk"]
[Date "2019.09.15"]
[Round "7.4"]
[White "Stupak, Kirill"]
[Black "Frolyanov, Dmitry"]
[Result "1/2-1/2"]
[ECO "D31"]
[WhiteElo "2551"]
[BlackElo "2556"]
[Annotator "ChessBase"]
[PlyCount "87"]
[EventDate "2019.09.09"]
[EventType "swiss"]
[EventCountry "RUS"]
[SourceTitle "playchess.com"]
[Source "ChessBase"]
[SourceQuality "1"]
[TimeControl "5400+30"]

1. d4 {[%emt 0:06:22]} d5 {[%emt 0:00:00]} 2. c4 {[%emt 0:00:12]} e6 {[%emt 0:00:00]} 3. Nc3 {[%emt 0:00:08]} c6 {[%emt 0:00:00]} 4. Nf3 {[%emt 0:00:04]} dxc4 {[%emt 0:01:29]} 5. a4 {[%emt 0:00:02]} Bb4 {[%emt 0:00:18]} 6. e3 {[%emt 0:00:03]} b5 {[%emt 0:00:13]} 7. Bd2 {[%emt 0:00:02]} a5 {[%emt 0:00:12]} 8. axb5 {[%emt 0:00:02]} Bxc3 {[%emt 0:00:09]} 9. Bxc3 {[%emt 0:00:03]} cxb5 {[%emt 0:00:05]} 10. b3 {[%emt 0:00:02]} Bb7 {[%emt 0:00:09]} 11. bxc4 {[%emt 0:00:01]} b4 {[%emt 0:00:11]} 12. Bb2 {[%emt 0:00:02]} Nf6 {[%emt 0:00:12]} 13. c5 {[%emt 0:00:02]} O-O {[%emt 0:02:38]} 14. Bb5 {[%emt 0:00:05]} Qc7 {[%emt 0:05:12]} 15. O-O {[%emt 0:00:18]} Nc6 {[%emt 0:11:02]} 16. Re1 {[%emt 0:18:35]} Ne7 {[%emt 0:08:55]} 17. Ba4 {[%emt 0:12:46]} Ng6 {[%emt 0:02:16]} 18. Nd2 {[%emt 0:04:59]} Ba6 {[%emt 0:10:11]} 19. Qc2 {[%emt 0:07:59]} e5 {[%emt 0:03:19]} 20. Nc4 {[%emt 0:08:03]} exd4 {[%emt 0:00:17]} 21. Bxd4 {[%emt 0:00:51]} Bb7 {[%emt 0:17:17]} 22. c6 {[%emt 0:04:54]} Ba6 {[%emt 0:01:07]} 23. Nb6 {[%emt 0:10:59]} Ng4 {[%emt 0:05:54]} 24. g3 {[%emt 0:04:37]} Rad8 {[%emt 0:03:18]} 25. Nd7 {[%emt 0:02:00]} N6e5 {[%emt 0:00:39]} 26. Qe4 {[%emt 0:03:24]} Rxd7 {[%emt 0:05:44]} 27. cxd7 {[%emt 0:05:06]} Bb7 {[%emt 0:00:18]} 28. Qc2 {[%emt 0:00:32]} Nf3+ {[%emt 0:02:30]} 29. Kf1 {[%emt 0:00:04]} Qb8 {[%emt 0:07:07]} 30. Rec1 {[%emt 0:02:15]} b3 {[%emt 0:06:24]} 31. Bxb3 {[%emt 0:03:02]} Ba6+ {[%emt 0:00:24]} 32. Kg2 {[%emt 0:00:32]} Qa8 {[%emt 0:00:51]} 33. Kh3 {[%emt 0:07:05]} Nxd4 {[%emt 0:04:37]} 34. exd4 {[%emt 0:00:34]} Qf3 {[%emt 0:00:05]} 35. Ra2 {[%emt 0:00:37]} Bd3 {[%emt 0:01:34]} 36. Qc5 {[%emt 0:00:46]} Rd8 {[%emt 0:01:21]} 37. Qxa5 {[%emt 0:00:32]} g6 {[%emt 0:00:50]} 38. Qxd8+ {[%emt 0:00:31]} Kg7 {[%emt 0:00:02]} 39. Qg5 {[%emt 0:00:30]} Bf5 {[%emt 0:00:09]} 40. Qxf5 {[%emt 0:00:36]} Qxf5 {[%emt 0:00:16]} 41. Kg2 {[%emt 0:00:37]} Qxd7 {[%emt 0:00:08]} 42. d5 {[%emt 0:00:31]} Ne5 {[%emt 0:00:14]} 43. Rd2 {[%emt 0:00:26]} Qf5 {[%emt 0:00:16]} 44. Bd1 {[%emt 0:00:36]} 1/2-1/2

[Event "Panchenko Memorial 2019"]
[Site "Chelyabinsk"]
[Date "2019.09.15"]
[Round "7.5"]
[White "Bezgodov, Alexei"]
[Black "Shaposhnikov, Evgeny"]
[Result "1/2-1/2"]
[ECO "C70"]
[WhiteElo "2453"]
[BlackElo "2572"]
[Annotator "ChessBase"]
[PlyCount "164"]
[EventDate "2019.09.09"]
[EventType "swiss"]
[EventCountry "RUS"]
[SourceTitle "playchess.com"]
[Source "ChessBase"]
[SourceQuality "1"]
[TimeControl "5400+30"]

1. e4 {[%emt 0:00:00]} e5 {[%emt 0:00:46]} 2. Nf3 {[%emt 0:00:00]} Nc6 {[%emt 0:00:05]} 3. Bb5 {[%emt 0:00:00]} a6 {[%emt 0:00:15]} 4. Ba4 {[%emt 0:00:00]} Bc5 {[%emt 0:00:09]} 5. c3 {[%emt 0:06:31]} Nge7 {[%emt 0:00:16]} 6. O-O {[%emt 0:03:56]} Ba7 {[%emt 0:00:08]} 7. d4 {[%emt 0:02:06]} exd4 {[%emt 0:00:07]} 8. cxd4 {[%emt 0:00:03]} d5 {[%emt 0:00:07]} 9. exd5 {[%emt 0:00:22]} Nxd5 {[%emt 0:00:03]} 10. Bg5 {[%emt 0:00:36]} Qd6 {[%emt 0:01:30]} 11. Re1+ {[%emt 0:00:57]} Be6 {[%emt 0:00:10]} 12. Nbd2 {[%emt 0:00:47]} O-O {[%emt 0:00:15]} 13. Nc4 {[%emt 0:00:45]} Qb4 {[%emt 0:00:45]} 14. Bxc6 {[%emt 0:00:09]} bxc6 {[%emt 0:01:01]} 15. Qc2 {[%emt 0:04:14]} Qb5 {[%emt 0:03:04]} 16. Na3 {[%emt 0:05:55]} Qb7 {[%emt 0:08:28]} 17. Bd2 {[%emt 0:07:40]} Nf6 {[%emt 0:02:32]} 18. Ne5 {[%emt 0:03:13]} Bxd4 {[%emt 0:03:34]} 19. Nxc6 {[%emt 0:05:12]} Qxb2 {[%emt 0:00:37]} 20. Nxd4 {[%emt 0:01:20]} Qxd4 {[%emt 0:04:34]} 21. Bc3 {[%emt 0:00:24]} Qh4 {[%emt 0:08:41]} 22. Be5 {[%emt 0:05:00]} Nd5 {[%emt 0:02:47]} 23. Rad1 {[%emt 0:01:00]} Rfe8 {[%emt 0:02:44]} 24. Nb1 {[%emt 0:04:21]} f6 {[%emt 0:09:04]} 25. Bg3 {[%emt 0:00:57]} Qb4 {[%emt 0:01:34]} 26. h3 {[%emt 0:02:43]} Bf7 {[%emt 0:02:01]} 27. Rxe8+ {[%emt 0:01:07]} Rxe8 {[%emt 0:00:02]} 28. Kh2 {[%emt 0:00:13]} h5 {[%emt 0:03:18]} 29. a3 {[%emt 0:03:12]} Qe4 {[%emt 0:08:05]} 30. Qxe4 {[%emt 0:01:10]} Rxe4 {[%emt 0:00:03]} 31. f3 {[%emt 0:10:08]} Rc4 {[%emt 0:01:40]} 32. Be1 {[%emt 0:01:04]} Rc2 {[%emt 0:02:08]} 33. Nd2 {[%emt 0:01:08]} Ne3 {[%emt 0:05:34]} 34. Rb1 {[%emt 0:00:32]} c5 {[%emt 0:00:33]} 35. Rb8+ {[%emt 0:00:49]} Kh7 {[%emt 0:00:12]} 36. Rb7 {[%emt 0:00:46]} Kg6 {[%emt 0:04:35]} 37. Re7 {[%emt 0:00:46]} Nd5 {[%emt 0:03:11]} 38. Re4 {[%emt 0:00:25]} Nb6 {[%emt 0:00:34]} 39. Nf1 {[%emt 0:00:39]} Bd5 {[%emt 0:01:46]} 40. Re3 {[%emt 0:00:29]} Nc4 {[%emt 0:00:33]} 41. Rd3 {[%emt 0:00:08]} Ne5 {[%emt 0:00:36]} 42. Rd2 {[%emt 0:00:16]} Rc1 {[%emt 0:01:44]} 43. Bg3 {[%emt 0:02:50]} Bxf3 {[%emt 0:00:58]} 44. Bxe5 {[%emt 0:02:46]} fxe5 {[%emt 0:01:00]} 45. Rd6+ {[%emt 0:01:00]} Kg5 {[%emt 0:06:19]} 46. Nd2 {[%emt 0:01:37]} Be2 {[%emt 0:01:08]} 47. Kg3 {[%emt 0:00:26]} Bb5 {[%emt 0:02:53]} 48. Kf3 {[%emt 0:05:51]} Kf5 {[%emt 0:03:37]} 49. g4+ {[%emt 0:01:06]} hxg4+ {[%emt 0:00:29]} 50. hxg4+ {[%emt 0:00:02]} Kg5 {[%emt 0:00:01]} 51. Ne4+ {[%emt 0:02:12]} Kh4 {[%emt 0:00:03]} 52. Rg6 {[%emt 0:00:43]} Rf1+ {[%emt 0:01:09]} 53. Nf2 {[%emt 0:00:55]} Re1 {[%emt 0:01:43]} 54. Kg2 {[%emt 0:00:59]} c4 {[%emt 0:02:26]} 55. Rxg7 {[%emt 0:00:18]} Bc6+ {[%emt 0:00:32]} 56. Kh2 {[%emt 0:00:01]} e4 {[%emt 0:01:31]} 57. Rh7+ {[%emt 0:00:27]} Kg5 {[%emt 0:00:01]} 58. Rc7 {[%emt 0:00:17]} e3 {[%emt 0:01:55]} 59. Nh3+ {[%emt 0:00:28]} Kxg4 {[%emt 0:00:02]} 60. Rxc6 {[%emt 0:00:18]} Re2+ {[%emt 0:00:01]} 61. Kg1 {[%emt 0:00:17]} Kxh3 {[%emt 0:00:10]} 62. Kf1 {[%emt 0:00:15]} Ra2 {[%emt 0:02:49]} 63. Rxc4 {[%emt 0:02:07]} Kg3 {[%emt 0:00:06]} 64. Rc6 {[%emt 0:00:55]} a5 {[%emt 0:00:24]} 65. Rf6 {[%emt 0:06:01]} a4 {[%emt 0:00:10]} 66. Ke1 {[%emt 0:00:09]} Kg4 {[%emt 0:01:24]} 67. Rf8 {[%emt 0:02:27]} Rxa3 {[%emt 0:00:38]} 68. Ke2 {[%emt 0:00:07]} Rc3 {[%emt 0:00:17]} 69. Rf7 {[%emt 0:00:23]} a3 {[%emt 0:00:35]} 70. Rf8 {[%emt 0:00:24]} Rb3 {[%emt 0:00:59]} 71. Rf7 {[%emt 0:00:09]} Kg5 {[%emt 0:00:40]} 72. Rf8 {[%emt 0:00:07]} Kg6 {[%emt 0:00:01]} 73. Rf4 {[%emt 0:02:57]} Kg7 {[%emt 0:00:04]} 74. Rf5 {[%emt 0:00:18]} Rc3 {[%emt 0:00:04]} 75. Rf4 {[%emt 0:00:14]} Kg8 {[%emt 0:00:04]} 76. Rf5 {[%emt 0:00:11]} Kh8 {[%emt 0:00:01]} 77. Rg5 {[%emt 0:00:34]} Kh7 {[%emt 0:00:08]} 78. Rg4 {[%emt 0:00:11]} Kh6 {[%emt 0:00:07]} 79. Rg8 {[%emt 0:00:13]} Kh5 {[%emt 0:00:11]} 80. Rg7 {[%emt 0:00:21]} Rb3 {[%emt 0:00:12]} 81. Rg8 {[%emt 0:00:12]} Kh4 {[%emt 0:00:07]} 82. Rg7 {[%emt 0:00:16]} Kh5 {[%emt 0:03:12]} 1/2-1/2

[Event "Panchenko Memorial 2019"]
[Site "Chelyabinsk"]
[Date "2019.09.15"]
[Round "7.6"]
[White "Kotsur, Pavel"]
[Black "Vokarev, Sergey"]
[Result "0-1"]
[ECO "C99"]
[WhiteElo "2528"]
[BlackElo "2443"]
[Annotator "ChessBase"]
[PlyCount "94"]
[EventDate "2019.09.09"]
[EventType "swiss"]
[EventCountry "RUS"]
[SourceTitle "playchess.com"]
[Source "ChessBase"]
[SourceQuality "1"]
[TimeControl "5400+30"]

1. e4 {[%emt 0:00:00]} e5 {[%emt 0:00:00]} 2. Nf3 {[%emt 0:00:00]} Nc6 {[%emt 0:00:00]} 3. Bb5 {[%emt 0:00:00]} a6 {[%emt 0:00:00]} 4. Ba4 {[%emt 0:00:00]} Nf6 {[%emt 0:00:00]} 5. O-O {[%emt 0:00:06]} Be7 {[%emt 0:00:28]} 6. Re1 {[%emt 0:00:09]} b5 {[%emt 0:00:11]} 7. Bb3 {[%emt 0:00:04]} d6 {[%emt 0:00:21]} 8. c3 {[%emt 0:00:06]} O-O {[%emt 0:00:06]} 9. h3 {[%emt 0:00:03]} Na5 {[%emt 0:01:04]} 10. Bc2 {[%emt 0:00:46]} c5 {[%emt 0:00:37]} 11. d4 {[%emt 0:00:04]} Qc7 {[%emt 0:00:12]} 12. Nbd2 {[%emt 0:01:02]} cxd4 {[%emt 0:00:39]} 13. cxd4 {[%emt 0:00:01]} Nc6 {[%emt 0:00:53]} 14. Nb3 {[%emt 0:00:14]} a5 {[%emt 0:01:06]} 15. Be3 {[%emt 0:00:05]} a4 {[%emt 0:00:13]} 16. Nbd2 {[%emt 0:00:04]} Bd7 {[%emt 0:01:42]} 17. Rc1 {[%emt 0:02:23]} Rac8 {[%emt 0:05:41]} 18. Bb1 {[%emt 0:12:37]} Qb8 {[%emt 0:02:51]} 19. Qe2 {[%emt 0:00:35]} h6 {[%emt 0:03:03]} 20. Nf1 {[%emt 0:05:04]} Bd8 {[%emt 0:08:10]} 21. d5 {[%emt 0:24:31]} Ne7 {[%emt 0:07:22]} 22. Rxc8 {[%emt 0:02:29]} Qxc8 {[%emt 0:08:03]} 23. Rc1 {[%emt 0:10:33]} Qa6 {[%emt 0:02:08]} 24. Ne1 {[%emt 0:03:20]} Bb6 {[%emt 0:04:48]} 25. Bd2 {[%emt 0:05:47]} Rc8 {[%emt 0:08:55]} 26. Rd1 {[%emt 0:04:36]} Qa7 {[%emt 0:08:59]} 27. Nd3 {[%emt 0:05:15]} Ne8 {[%emt 0:05:09]} 28. Ng3 {[%emt 0:06:23]} Ng6 {[%emt 0:06:40]} 29. Qf3 {[%emt 0:03:00]} Ba5 {[%emt 0:04:18]} 30. Nb4 {[%emt 0:00:36]} Bb6 {[%emt 0:05:26]} 31. a3 {[%emt 0:01:58]} Nf6 {[%emt 0:00:48]} 32. Nf5 {[%emt 0:03:31]} Bxf5 {[%emt 0:04:35]} 33. Qxf5 {[%emt 0:00:16]} Ne7 {[%emt 0:00:38]} 34. Qf3 {[%emt 0:00:10]} Bd4 {[%emt 0:02:37]} 35. Bd3 {[%emt 0:02:23]} Qb6 {[%emt 0:03:39]} 36. Nc2 {[%emt 0:01:57]} Nd7 {[%emt 0:03:39]} 37. Nxd4 {[%emt 0:04:21]} exd4 {[%emt 0:00:01]} 38. Bxh6 {[%emt 0:00:14]} Ne5 {[%emt 0:01:12]} 39. Qg3 {[%emt 0:00:08]} N7g6 {[%emt 0:00:10]} 40. Bf4 {[%emt 0:01:14]} b4 {[%emt 0:01:37]} 41. axb4 {[%emt 0:01:48]} Qxb4 {[%emt 0:00:12]} 42. Bc1 {[%emt 0:00:12]} Qb3 {[%emt 0:00:36]} 43. Be2 {[%emt 0:00:25]} d3 {[%emt 0:01:14]} 44. Bg4 {[%emt 0:00:03]} Qxd1+ {[%emt 0:00:28]} 45. Bxd1 {[%emt 0:00:10]} Rxc1 {[%emt 0:00:02]} 46. f4 {[%emt 0:00:16]} Rxd1+ {[%emt 0:00:10]} 47. Kh2 {[%emt 0:00:01]} d2 {[%emt 0:00:36]} 0-1

[Event "Panchenko Memorial 2019"]
[Site "Chelyabinsk"]
[Date "2019.09.15"]
[Round "7.7"]
[White "Badelka, Olga"]
[Black "Zakhartsov, Vladimir"]
[Result "1-0"]
[ECO "D83"]
[WhiteElo "2399"]
[BlackElo "2519"]
[Annotator "ChessBase"]
[PlyCount "109"]
[EventDate "2019.09.09"]
[EventType "swiss"]
[EventCountry "RUS"]
[SourceTitle "playchess.com"]
[Source "ChessBase"]
[SourceQuality "1"]
[TimeControl "5400+30"]

1. d4 {[%emt 0:00:00]} Nf6 {[%emt 0:10:20]} 2. c4 {[%emt 0:00:00]} g6 {[%emt 0:00:49]} 3. Nc3 {[%emt 0:00:00]} d5 {[%emt 0:00:16]} 4. Bf4 {[%emt 0:00:06]} Bg7 {[%emt 0:00:32]} 5. e3 {[%emt 0:00:06]} O-O {[%emt 0:05:50]} 6. Rc1 {[%emt 0:00:08]} c5 {[%emt 0:01:41]} 7. dxc5 {[%emt 0:00:36]} Be6 {[%emt 0:00:50]} 8. Nf3 {[%emt 0:09:52]} Nc6 {[%emt 0:00:53]} 9. cxd5 {[%emt 0:07:09]} Nxd5 {[%emt 0:00:27]} 10. Nxd5 {[%emt 0:00:09]} Qxd5 {[%emt 0:05:02]} 11. Qxd5 {[%emt 0:05:59]} Bxd5 {[%emt 0:01:06]} 12. Bc4 {[%emt 0:00:14]} Bxb2 {[%emt 0:09:44]} 13. Rc2 {[%emt 0:00:04]} Bxc4 {[%emt 0:00:12]} 14. Rxc4 {[%emt 0:00:07]} Rfd8 {[%emt 0:00:37]} 15. Ke2 {[%emt 0:00:13]} Rd7 {[%emt 0:00:24]} 16. Rb1 {[%emt 0:00:14]} Bg7 {[%emt 0:00:15]} 17. g4 {[%emt 0:05:05]} e5 {[%emt 0:03:07]} 18. Bg3 {[%emt 0:01:17]} f6 {[%emt 0:00:27]} 19. Nd2 {[%emt 0:04:09]} Bf8 {[%emt 0:00:25]} 20. Ne4 {[%emt 0:02:01]} Be7 {[%emt 0:01:12]} 21. f4 {[%emt 0:04:35]} f5 {[%emt 0:01:31]} 22. gxf5 {[%emt 0:00:19]} gxf5 {[%emt 0:00:01]} 23. Nd6 {[%emt 0:07:35]} Bxd6 {[%emt 0:00:41]} 24. cxd6 {[%emt 0:00:05]} e4 {[%emt 0:00:53]} 25. Rc5 {[%emt 0:03:23]} Rf8 {[%emt 0:00:06]} 26. Bh4 {[%emt 0:04:49]} h6 {[%emt 0:01:19]} 27. Rd5 {[%emt 0:10:18]} Kh7 {[%emt 0:01:08]} 28. a3 {[%emt 0:00:36]} Kg6 {[%emt 0:01:57]} 29. Rg1+ {[%emt 0:00:26]} Kh5 {[%emt 0:02:04]} 30. Bf2 {[%emt 0:14:30]} Rf6 {[%emt 0:00:50]} 31. Rgd1 {[%emt 0:00:17]} Kg6 {[%emt 0:05:26]} 32. Be1 {[%emt 0:02:28]} b6 {[%emt 0:04:33]} 33. Bc3 {[%emt 0:00:25]} Rf8 {[%emt 0:00:28]} 34. Rg1+ {[%emt 0:00:26]} Kh7 {[%emt 0:00:06]} 35. h4 {[%emt 0:01:06]} Na5 {[%emt 0:20:19]} 36. Bxa5 {[%emt 0:05:05]} bxa5 {[%emt 0:00:04]} 37. h5 {[%emt 0:01:59]} Rb8 {[%emt 0:04:40]} 38. Rc1 {[%emt 0:02:20]} Rb2+ {[%emt 0:04:39]} 39. Kf1 {[%emt 0:00:12]} Kg7 {[%emt 0:01:57]} 40. Rc7 {[%emt 0:03:13]} Rxc7 {[%emt 0:00:05]} 41. dxc7 {[%emt 0:00:03]} Rc2 {[%emt 0:00:03]} 42. Rd7+ {[%emt 0:03:14]} Kf6 {[%emt 0:00:02]} 43. Rh7 {[%emt 0:00:12]} Ke6 {[%emt 0:00:05]} 44. Rxh6+ {[%emt 0:00:13]} Kd7 {[%emt 0:00:03]} 45. Rh7+ {[%emt 0:00:20]} Kc8 {[%emt 0:00:02]} 46. Rf7 {[%emt 0:04:40]} Rh2 {[%emt 0:00:10]} 47. Rxf5 {[%emt 0:00:12]} Kxc7 {[%emt 0:00:14]} 48. Rxa5 {[%emt 0:00:19]} Rh3 {[%emt 0:00:52]} 49. Kf2 {[%emt 0:01:25]} Rh2+ {[%emt 0:00:40]} 50. Kg3 {[%emt 0:00:03]} Re2 {[%emt 0:00:03]} 51. h6 {[%emt 0:00:53]} Rxe3+ {[%emt 0:00:05]} 52. Kg4 {[%emt 0:00:04]} Re1 {[%emt 0:00:05]} 53. Rh5 {[%emt 0:01:41]} Rg1+ {[%emt 0:00:24]} 54. Kf5 {[%emt 0:00:05]} e3 {[%emt 0:00:03]} 55. Rh2 {[%emt 0:00:11]} 1-0

[Event "Panchenko Memorial 2019"]
[Site "Chelyabinsk"]
[Date "2019.09.15"]
[Round "7.8"]
[White "Meister, Jakob"]
[Black "Lobanov, Sergei"]
[Result "0-1"]
[ECO "C78"]
[WhiteElo "2410"]
[BlackElo "2515"]
[Annotator "ChessBase"]
[PlyCount "88"]
[EventDate "2019.09.09"]
[EventType "swiss"]
[EventCountry "RUS"]
[SourceTitle "playchess.com"]
[Source "ChessBase"]
[SourceQuality "1"]
[TimeControl "5400+30"]

1. e4 {[%emt 0:00:00]} e5 {[%emt 0:05:41]} 2. Nf3 {[%emt 0:00:00]} Nc6 {[%emt 0:00:04]} 3. Bb5 {[%emt 0:00:00]} a6 {[%emt 0:00:06]} 4. Ba4 {[%emt 0:00:00]} Nf6 {[%emt 0:00:22]} 5. O-O {[%emt 0:00:04]} b5 {[%emt 0:01:20]} 6. Bb3 {[%emt 0:00:34]} Bc5 {[%emt 0:00:02]} 7. d3 {[%emt 0:00:26]} d6 {[%emt 0:00:12]} 8. a4 {[%emt 0:00:44]} b4 {[%emt 0:01:15]} 9. Be3 {[%emt 0:00:32]} Bxe3 {[%emt 0:03:05]} 10. fxe3 {[%emt 0:00:03]} O-O {[%emt 0:02:21]} 11. Nbd2 {[%emt 0:00:13]} Ne7 {[%emt 0:01:08]} 12. Nh4 {[%emt 0:05:09]} Be6 {[%emt 0:00:02]} 13. Bxe6 {[%emt 0:05:31]} fxe6 {[%emt 0:00:02]} 14. Qf3 {[%emt 0:00:18]} d5 {[%emt 0:02:41]} 15. Qg3 {[%emt 0:04:59]} Qd6 {[%emt 0:03:20]} 16. exd5 {[%emt 0:06:57]} exd5 {[%emt 0:00:26]} 17. d4 {[%emt 0:01:42]} e4 {[%emt 0:04:26]} 18. Qh3 {[%emt 0:08:36]} g6 {[%emt 0:05:15]} 19. Nb3 {[%emt 0:07:40]} Nd7 {[%emt 0:00:23]} 20. g3 {[%emt 0:00:41]} Kg7 {[%emt 0:02:15]} 21. Ng2 {[%emt 0:00:25]} h6 {[%emt 0:04:33]} 22. Qg4 {[%emt 0:06:28]} Nf6 {[%emt 0:03:49]} 23. Qe2 {[%emt 0:00:49]} g5 {[%emt 0:00:02]} 24. Nc5 {[%emt 0:00:45]} a5 {[%emt 0:00:04]} 25. c4 {[%emt 0:01:07]} c6 {[%emt 0:03:05]} 26. Rac1 {[%emt 0:02:30]} Kg6 {[%emt 0:00:10]} 27. cxd5 {[%emt 0:02:00]} cxd5 {[%emt 0:01:14]} 28. Rc2 {[%emt 0:00:44]} Rab8 {[%emt 0:04:32]} 29. Nb3 {[%emt 0:01:26]} Qd7 {[%emt 0:04:17]} 30. Nc5 {[%emt 0:03:11]} Qh3 {[%emt 0:01:01]} 31. Ne1 {[%emt 0:01:52]} Ng4 {[%emt 0:03:01]} 32. Rxf8 {[%emt 0:00:14]} Rxf8 {[%emt 0:00:06]} 33. Qg2 {[%emt 0:00:15]} Qxg2+ {[%emt 0:03:05]} 34. Nxg2 {[%emt 0:00:03]} Rf3 {[%emt 0:00:09]} 35. Nb7 {[%emt 0:04:22]} Nxe3 {[%emt 0:03:42]} 36. Nxe3 {[%emt 0:02:00]} Rxe3 {[%emt 0:00:00]} 37. Nxa5 {[%emt 0:00:30]} Rd3 {[%emt 0:00:35]} 38. Nc6 {[%emt 0:13:02]} Nxc6 {[%emt 0:00:06]} 39. Rxc6+ {[%emt 0:00:09]} Kf5 {[%emt 0:00:02]} 40. Rc1 {[%emt 0:00:14]} Rd2 {[%emt 0:04:42]} 41. Rb1 {[%emt 0:03:47]} e3 {[%emt 0:02:55]} 42. a5 {[%emt 0:00:10]} Ke4 {[%emt 0:00:38]} 43. a6 {[%emt 0:01:36]} e2 {[%emt 0:00:05]} 44. a7 {[%emt 0:01:24]} Kf3 {[%emt 0:00:08]} 0-1

[Event "Panchenko Memorial 2019"]
[Site "Chelyabinsk"]
[Date "2019.09.15"]
[Round "7.9"]
[White "Solozhenkin, Evgeniy"]
[Black "Korneev, Oleg"]
[Result "1/2-1/2"]
[ECO "D45"]
[WhiteElo "2394"]
[BlackElo "2511"]
[Annotator "ChessBase"]
[PlyCount "74"]
[EventDate "2019.09.09"]
[EventType "swiss"]
[EventCountry "RUS"]
[SourceTitle "playchess.com"]
[Source "ChessBase"]
[SourceQuality "1"]
[TimeControl "5400+30"]

1. d4 {[%emt 0:00:34]} Nf6 {[%emt 0:06:58]} 2. c4 {[%emt 0:00:16]} e6 {[%emt 0:00:06]} 3. Nf3 {[%emt 0:00:14]} d5 {[%emt 0:00:21]} 4. Nc3 {[%emt 0:00:24]} c6 {[%emt 0:02:10]} 5. e3 {[%emt 0:00:07]} Nbd7 {[%emt 0:00:03]} 6. Qc2 {[%emt 0:00:08]} b6 {[%emt 0:01:04]} 7. Be2 {[%emt 0:08:19]} Bb7 {[%emt 0:01:14]} 8. O-O {[%emt 0:00:29]} Be7 {[%emt 0:09:19]} 9. b3 {[%emt 0:03:32]} O-O {[%emt 0:00:04]} 10. Bb2 {[%emt 0:02:10]} Rc8 {[%emt 0:01:23]} 11. e4 {[%emt 0:16:25]} c5 {[%emt 0:10:01]} 12. exd5 {[%emt 0:02:25]} exd5 {[%emt 0:01:10]} 13. Nxd5 {[%emt 0:07:54]} Nxd5 {[%emt 0:02:11]} 14. cxd5 {[%emt 0:00:05]} cxd4 {[%emt 0:03:15]} 15. Qd2 {[%emt 0:02:44]} Nf6 {[%emt 0:10:53]} 16. Nxd4 {[%emt 0:08:04]} Nxd5 {[%emt 0:00:17]} 17. Rac1 {[%emt 0:13:16]} Rxc1 {[%emt 0:29:58]} 18. Qxc1 {[%emt 0:00:11]} Bg5 {[%emt 0:00:10]} 19. Qc4 {[%emt 0:05:03]} Qd7 {[%emt 0:05:47]} 20. Bf3 {[%emt 0:06:51]} Bf6 {[%emt 0:00:53]} 21. Rd1 {[%emt 0:00:58]} Rc8 {[%emt 0:03:26]} 22. Qf1 {[%emt 0:01:09]} h6 {[%emt 0:02:24]} 23. g3 {[%emt 0:01:06]} Ba8 {[%emt 0:02:53]} 24. Ba1 {[%emt 0:03:22]} Rd8 {[%emt 0:01:39]} 25. Qg2 {[%emt 0:05:48]} Qe8 {[%emt 0:00:15]} 26. h3 {[%emt 0:00:58]} Ne3 {[%emt 0:01:50]} 27. fxe3 {[%emt 0:00:05]} Qxe3+ {[%emt 0:00:02]} 28. Qf2 {[%emt 0:00:06]} Qxf3 {[%emt 0:00:18]} 29. Nxf3 {[%emt 0:00:18]} Rxd1+ {[%emt 0:00:03]} 30. Kh2 {[%emt 0:04:55]} Rxa1 {[%emt 0:00:03]} 31. Qe2 {[%emt 0:00:56]} Bd5 {[%emt 0:03:07]} 32. g4 {[%emt 0:00:33]} Bxf3 {[%emt 0:01:32]} 33. Qxf3 {[%emt 0:00:05]} Rxa2+ {[%emt 0:00:02]} 34. Kh1 {[%emt 0:00:23]} Ra1+ {[%emt 0:00:19]} 35. Kg2 {[%emt 0:00:06]} Ra2+ {[%emt 0:00:02]} 36. Kh1 {[%emt 0:00:05]} Ra1+ {[%emt 0:02:09]} 37. Kg2 {[%emt 0:00:05]} Ra2+ {[%emt 0:00:21]} 1/2-1/2